Cogmind - Beta 13 @@@ ROGUE MODE // 2024.05.13 @ 23:39:48 Player: rel Result: Destroyed by as-56855 with Assembled Blade Performance ------------- Evolutions (0) 0 Regions Visited (4) 800 Robots Destroyed (18) 90 Value Destroyed (533) 533 Prototype IDs (2) 40 Alien Tech Used (0) 0 Bonus (0) 0 TOTAL SCORE: 1463 Bonus ------- None Cogmind --------- Core Integrity 0/250 Matter 167/300 Energy 100/100 System Corruption 0% Temperature Cool (5) Movement Walking (120) Location -9/Mines Parts ------- > --- POWER (1) -------- (None) > --- PROPULSION (2) --- Aluminum Leg Aluminum Leg > --- UTILITY (2) ------ Small Storage Unit Makeshift System Shield > --- WEAPON (2) ------- Light Assault Rifle Light Assault Rifle > --- INVENTORY (8) ---- Aluminum Leg Signal Interpreter Small Laser Grenade Launcher Mining Laser Peak State ------------ > --- POWER ------------ Light Ion Engine > --- PROPULSION ------- Aluminum Leg Aluminum Leg > --- UTILITY ---------- Small Storage Unit Makeshift System Shield > --- WEAPON ----------- Light Assault Rifle Makeshift Shrapnel Gun > --- INVENTORY -------- Aluminum Leg Aluminum Leg Aluminum Leg Signal Interpreter Small Laser Light Assault Rifle Grenade Launcher Mining Laser [Rating: 13] Favorites ----------- Power Light Ion Engine Engine Light Ion Engine Propulsion Aluminum Leg Leg Aluminum Leg Utility Small Storage Unit Storage Small Storage Unit Processor Targeting Computer Hackware Makeshift System Shield Weapon Light Assault Rifle Energy Gun EM Pulse Gun Ballistic Gun Light Assault Rifle Special Weapon Mining Laser Build | -11 -10 -10 -10 -9 ------- Run | Yrd Mat Min Exi Min Slots Evolved . | . . . . . Power . | . . . . . Propulsion . | . . . . . Utility . | . . . . . Weapon . | . . . . . Parts Attached 17 | 6 4 . 3 4 Power 2 | 1 1 . . . Engine 2 | 1 1 . . . Core . | . . . . . Reactor . | . . . . . Propulsion 4 | 2 . . . 2 Treads . | . . . . . Leg 4 | 2 . . . 2 Wheel . | . . . . . Hover . | . . . . . Flight . | . . . . . Utility 3 | 1 1 . 1 . Device . | . . . . . Storage 1 | 1 . . . . Processor 1 | . 1 . . . Hackware 1 | . . . 1 . Protection . | . . . . . Artifact . | . . . . . Weapon 8 | 2 2 . 2 2 Energy Gun 1 | . 1 . . . Energy Cannon . | . . . . . Ballistic Gun 6 | 2 1 . 1 2 Ballistic Cannon . | . . . . . Launcher . | . . . . . Special Weapon 1 | . . . 1 . Impact Weapon . | . . . . . Slashing Weapon . | . . . . . Piercing Weapon . | . . . . . Special Melee Weapon . | . . . . . Unidentified Prototypes . | . . . . . Parts Lost 6 | . 2 . . 4 Power 2 | . 1 . . 1 Propulsion 2 | . . . . 2 Utility . | . . . . . Weapon 2 | . 1 . . 1 Highest Loss Streak 3 | . 1 . . 3 To Critical Strikes . | . . . . . Average Slot Usage (%) 99 | . 98 100 100 94 Engine 13 | . 13 14 14 14 Leg 27 | . 28 28 28 23 Storage 14 | . 14 14 14 14 Processor 8 | . 13 14 7 . Hackware 5 | . . . 6 14 Energy Gun 4 | . 10 14 2 . Ballistic Gun 18 | . 16 14 20 19 Special Weapon 3 | . . . 5 7 Naked Turns . | . . . . . Heaviest Build 14 | 13 14 11 11 11 Greatest Support 20 | 20 20 20 20 20 Greatest Overweight (x) 2 | . . . . 2 Average Overweight (x) . | . . . . . Largest Inventory Capacity 8 | 8 8 8 8 8 Average Capacity 7 | 6 8 8 8 8 Most Carried 8 | 4 8 8 8 8 Average Carried 7 | 1 5 8 8 7 Final Capacity 8 | 8 8 8 8 8 Final Carried 8 | 2 8 8 8 5 Class Distribution -------------------- 100% | Mutant Dominant Class ---------------- Mutant | -10/Materials Mutant | -10/Mines Mutant | -10/Exiles Mutant | -9/Mines Resources | -11 -10 -10 -10 -9 ----------- Run | Yrd Mat Min Exi Min Matter Collected 379 | 168 207 4 . . Remotely . | . . . . . Salvage Created 571 | . 562 . . 9 Parts 29 | . 29 . . . Haulers Intercepted 1 | . 1 . . . Recyclers Shooed . | . . . . . Parts Field Recycled . | . . . . . Retrieved Matter . | . . . . . Parts Self-Destructed . | . . . . . Prevented . | . . . . . Kills | -11 -10 -10 -10 -9 ------- Run | Yrd Mat Min Exi Min Combat Hostiles Destroyed 14 | . 12 . . 2 Guns 13 | . 11 . . 2 AOE 1 | . 1 . . . Classes Destroyed 6 | . 5 . . 1 Worker 1 | . 1 . . . Hauler 1 | . 1 . . . Watcher 2 | . 2 . . . Swarmer 3 | . 3 . . . Grunt 9 | . 9 . . . Demolisher 2 | . . . . 2 Best Kill Streak 6 | . 6 . . 1 Combat Bots Only 3 | . 3 . . 1 Max Kills in Single Turn 2 | . 2 . . 1 Gunslinging . | . . . . . Exploded 1 | . 1 . . . Melee . | . . . . . Uniques/NPCs Destroyed . | . . . . . Combat | -11 -10 -10 -10 -9 -------- Run | Yrd Mat Min Exi Min Hostile Shots Fired 58 | . 34 . . 24 Missed 17 | . 12 . . 5 Damage Taken 1001 | . 452 . . 549 Core 254 | . 58 . . 196 Absorbed by Shields . | . . . . . Core Remaining (%) 100 | 100 . . . . Volleys Fired 98 | 1 44 . 36 17 Largest 2 | 2 2 . 1 2 Hottest 100 | 40 60 . 100 44 Shots Fired 152 | 2 83 . 36 31 Gun 131 | 2 83 . 15 31 Cannon . | . . . . . Launcher . | . . . . . Special 21 | . . . 21 . Kinetic 93 | 2 45 . 15 31 Thermal 21 | . . . 21 . Explosive . | . . . . . Electromagnetic 38 | . 38 . . . Robot Hit Streak 8 | . 8 . 1 7 Robot Miss Streak 5 | . 5 . 4 5 Penetration Max . | . . . . . Secondary Targets 1 | . 1 . . . Max Gunslinging Chain 1 | . 1 . . . Shots Hit Robots 74 | . 55 . 3 16 Core Hits 38 | . 27 . 2 9 Critical Kills 1 | . 1 . . . Critical Parts Destroyed . | . . . . . Critical Strikes 1 | . 1 . . . Destroy 1 | . 1 . . . Melee Attacks . | . . . . . Impact . | . . . . . Slashing . | . . . . . Piercing . | . . . . . Sneak Attacks . | . . . . . Combat Hostiles . | . . . . . Follow-up Attacks . | . . . . . Damage Inflicted 1051 | . 733 . 72 246 Guns 898 | . 652 . . 246 Cannons . | . . . . . Explosions 81 | . 81 . . . Melee . | . . . . . Ramming . | . . . . . Kinetic 527 | . 281 . . 246 Thermal 153 | . 81 . 72 . Explosive . | . . . . . Electromagnetic 371 | . 371 . . . Impact . | . . . . . Slashing . | . . . . . Piercing . | . . . . . Highest Corruption . | . . . . . Average Corruption . | . . . . . Corruption Purged . | . . . . . Corruption Blocked . | . . . . . Overload Shots . | . . . . . Overflow Damage 6 | . 6 . . . Projectiles . | . . . . . Explosions 6 | . 6 . . . Melee . | . . . . . Knockbacks . | . . . . . Impact . | . . . . . Kinetic . | . . . . . Secondary . | . . . . . Self-Inflicted Damage 182 | . 182 . . . Shots 3 | . 3 . . . Rammed . | . . . . . Targets Rammed 1 | . . . . 1 Kicked 1 | . . . . 1 Crushed . | . . . . . Highest Temperature 140 | . 49 . 140 35 Average Temperature 28 | . 21 . 38 12 Received Heat Transfer 238 | . 138 . . 100 Siege Activations . | . . . . . Robots Corrupted . | . . . . . Combat Hostiles . | . . . . . Parts Fried 2 | . 2 . . . Impact Corruptions . | . . . . . Robots Melted . | . . . . . Combat Hostiles . | . . . . . Parts Melted . | . . . . . Heat Transferred 300 | . 150 . 150 . Parts Sabotaged . | . . . . . Parts Stolen . | . . . . . Parts Stripped . | . . . . . Power Chain Reactions 2 | . 2 . . . Alert | -11 -10 -10 -10 -9 ------- Run | Yrd Mat Min Exi Min Peak Influence 393 | . 393 50 . 45 Initial 50 | . . 50 . . Average 77 | . 118 50 . 8 Maximum Alert Level 1 | . 1 . . . Low Security (%) 88 | 100 80 100 . 100 Level 1 11 | . 19 . . . Level 2 . | . . . . . Level 3 . | . . . . . Level 4 . | . . . . . Level 5 . | . . . . . High Security . | . . . . . Max Security . | . . . . . Squads Dispatched 3 | . 3 . . . Investigation 1 | . 1 . . . Extermination . | . . . . . Reinforcement 2 | . 2 . . . Assault . | . . . . . Garrison . | . . . . . Intercept . | . . . . . Searches Triggered . | . . . . . Construction Impeded . | . . . . . Haulers Reinforced . | . . . . . Active Scanning Responses . | . . . . . Cargo Convoy Interrupts . | . . . . . Stealth | -11 -10 -10 -10 -9 --------- Run | Yrd Mat Min Exi Min Distress Signals 2 | . 2 . . . Communications Jammed . | . . . . . Distress Signals . | . . . . . Times Spotted 39 | . 21 . . 18 Peak Tracking Total 14 | . 3 . . 14 Tactical Retreats 2 | . 1 . . 1 Traps | -11 -10 -10 -10 -9 ------- Run | Yrd Mat Min Exi Min Traps Triggered . | . . . . . Indirectly . | . . . . . Trap Hack Attempts . | . . . . . Triggered . | . . . . . Disarmed . | . . . . . Reprogrammed . | . . . . . Reused . | . . . . . Traps Extracted . | . . . . . Installed . | . . . . . Triggered . | . . . . . Machines | -11 -10 -10 -10 -9 ---------- Run | Yrd Mat Min Exi Min Machines Disabled 6 | . 3 . 3 . Max in Single Turn 1 | . 1 . 1 . Machines Repaired . | . . . . . Machines Dismantled . | . . . . . Machines Sabotaged . | . . . . . Overloaded Fab Kills . | . . . . . Hacking | -11 -10 -10 -10 -9 --------- Run | Yrd Mat Min Exi Min Machines Accessed 7 | . 4 . 3 . Terminals 4 | . 4 . . . Fabricators . | . . . . . Repair Stations . | . . . . . Recycling Units . | . . . . . Scanalyzers . | . . . . . Garrison Access . | . . . . . Total Hacks 50 | . 18 . 32 . Successful 43 | . 11 . 32 . Failed 7 | . 7 . . . Catastrophic . | . . . . . Database Lockouts . | . . . . . Manual . | . . . . . Terminals 18 | . 18 . . . Fabricators . | . . . . . Repair Stations . | . . . . . Recycling Units . | . . . . . Scanalyzers . | . . . . . Garrison Access . | . . . . . Terminal Hacks 43 | . 11 . 32 . Record 37 | . 5 . 32 . Prototype ID Bank 1 | . 1 . . . Branch Access Points 1 | . 1 . . . Alert Level 1 | . 1 . . . Unreport Threat 1 | . 1 . . . Maintenance Status 1 | . 1 . . . Surveillance Status 1 | . 1 . . . Fabricator Hacks . | . . . . . Repair Station Hacks . | . . . . . Recycling Unit Hacks . | . . . . . Scanalyzer . | . . . . . Garrison Access Hacks . | . . . . . Unauthorized Hacks . | . . . . . Terminals . | . . . . . Fabricators . | . . . . . Repair Stations . | . . . . . Recycling Units . | . . . . . Scanalyzers . | . . . . . Garrison Access . | . . . . . Data Cores Recovered . | . . . . . Used . | . . . . . Hacking Detections 4 | . 4 . . . Full Trace Events 3 | . 3 . . . Feedback Events . | . . . . . Feedback Blocked . | . . . . . Robot Schematics Acquired . | . . . . . Robots Built . | . . . . . Authchips . | . . . . . Time . | . . . . . Total Robot Build Rating . | . . . . . Part Schematics Acquired . | . . . . . Parts Built . | . . . . . Authchips . | . . . . . Time . | . . . . . Total Part Build Rating . | . . . . . Parts Repaired . | . . . . . Time . | . . . . . Parts Recycled . | . . . . . Recycled Matter . | . . . . . Retrieved Matter . | . . . . . Retrieved Components . | . . . . . Parts Scanalyzed . | . . . . . Part Schematics Acquired . | . . . . . Parts Damaged . | . . . . . Bothacking | -11 -10 -10 -10 -9 ------------ Run | Yrd Mat Min Exi Min Used RIF Installer . | . . . . . Robots Hacked . | . . . . . Non-combat . | . . . . . Combat . | . . . . . Robot Hacks Applied . | . . . . . Relay Couplers Released . | . . . . . Fabnet Peak Effective % . | . . . . . Robots Rewired 3 | . . . 3 . Allies Hacked . | . . . . . Hacks Repelled . | . . . . . Allies | -11 -10 -10 -10 -9 -------- Run | Yrd Mat Min Exi Min Total Allies 3 | . . . 3 . Largest Group 3 | . . . 3 3 Highest-Rated Group 37 | . . . 37 37 Highest-Rated Ally 21 | . . . 21 21 Total Orders . | . . . . . Ally Attacks 2 | . . . . 2 Total Damage 20 | . . . . 20 Kills . | . . . . . Allies Corrupted . | . . . . . Allies Melted . | . . . . . Intel | -11 -10 -10 -10 -9 ------- Run | Yrd Mat Min Exi Min Robot Analysis Total . | . . . . . Derelict Logs Recovered . | . . . . . Drone Launches . | . . . . . Drone Recoveries . | . . . . . Exploration | -11 -10 -10 -10 -9 ------------- Run | Yrd Mat Min Exi Min Turns Passed 2545 | 57 615 161 1467 245 Spaces Moved 1791 | 42 355 135 1102 157 Core 25 | 14 . . . 11 Treads . | . . . . . Legs 1766 | 28 355 135 1102 146 Wheels . | . . . . . Hover . | . . . . . Flight . | . . . . . Fastest Speed 50 | 50 120 120 120 120 Average Speed 119 | 96 120 120 120 122 Slowest Speed 150 | 120 120 120 120 150 Overloaded Moves . | . . . . . Propulsion Burnouts . | . . . . . Robots Hopped . | . . . . . Cave-ins Triggered . | . . . . . Exploration Rate (%) 48 | 4 68 33 93 43 Regions Visited 4 Branch Regions 3 Pre-discovered Areas 1 | . . . 1 . Known Exits Taken 1 | . 1 . . . Unknown Exits Taken 3 | 1 . 1 1 . Scrap Searched . | . . . . . Spaces Dug 3 | . . . 3 . Terrain Destroyed 40 | . 37 . 3 . Melee . | . . . . . Projectile 3 | . . . 3 . AOE 37 | . 37 . . . Terrain Rammed . | . . . . . Walls Destroyed . | . . . . . Machines Disabled . | . . . . . Actions | -11 -10 -10 -10 -9 --------- Run | Yrd Mat Min Exi Min Total 2008 | 56 465 134 1170 183 Wait 58 | . 54 . . 4 Move 1787 | 41 354 134 1101 157 Hop . | . . . . . Pick Up 17 | 8 9 . . . Fast Attach 2 | . . . 2 . Attach 12 | 6 3 . . 3 Detach . | . . . . . Swap 3 | . 1 . 1 1 Drop 2 | . . . 2 . Fire 98 | 1 44 . 36 17 Melee . | . . . . . Ram . | . . . . . Kick 1 | . . . . 1 Crush . | . . . . . Escape Stasis . | . . . . . Rewire 28 | . . . 28 . Trap . | . . . . . Miscellaneous . | . . . . . Route ------- -11/Scrapyard -10/Materials (discovered 2 exits: [*Mat] / *Min) -10/Mines -10/Exiles (discovered 2 exits: [*Min x2]) -9/Mines History --------- Turn | Location | Event 11 | -11/Scrapyard | Discovered new exit (range 15) 58 | -11/Scrapyard | Entered Materials 301 | -10/Materials | Build established: Mutant 323 | -10/Materials | Identified exit to Mines 514 | -10/Materials | Discovered new exit (range 15) 673 | -10/Materials | Entered Mines 828 | -10/Mines | Deemed a non-threat by the Exiles lab entrance 828 | -10/Mines | Discovered new exit (range 5) 834 | -10/Mines | Entered Exiles 834 | -10/Exiles | Found Exiles lab destroyed 857 | -10/Exiles | Discovered new exit (range 15) 1212 | -10/Exiles | Discovered new exit (range 12) 1699 | -10/Exiles | Learned location of Zion (-7) 2301 | -10/Exiles | Entered Mines 2301 | -9/Mines | Accompanied by 3 allies 2419 | -9/Mines | Assembled infested the area 2424 | -9/Mines | Assisted by a Guerilla fighting off Assembled 2470 | -9/Mines | Lost 4 allies 2473 | -9/Mines | Core integrity fell below 50% 2514 | -9/Mines | Lost 3 parts (2n1w) 2539 | -9/Mines | Core integrity fell below 20% 2546 | -9/Mines | Destroyed by as-56855 with Assembled Blade Last Messages --------------- 02451_ T-07 Excavator destroyed. 02465_ Aluminum Leg destroyed. 02465_ D-53 Grenadier destroyed. 02467_ Aluminum Leg destroyed. 02468_ The unstable cave ceiling collapses. 02483_ Mak. Shrapnel Gun destroyed. 02485_ as-63210 destroyed. 02487_ The unstable cave ceiling collapses. 02487_ D-53 Grenadier knocked back. 02488_ as-70975 destroyed. 02488_ as-01747 destroyed. 02489_ D-53 Grenadier destroyed. 02497_ The unstable cave ceiling collapses. 02498_ K-01 Serf collects debris. 02511_ The unstable cave ceiling collapses. 02511_ K-01 Serf collects debris. 02513_ The unstable cave ceiling collapses. 02515_ K-01 Serf collects debris. 02543_ Lgt. Ion Engine destroyed. 02544_ K-01 Serf collects debris. Map ----- +----------------------------------------------------+ | ?????????????""" """ """ #???????????## ##????? | | ???????????# """ """ """ #????????????####?????? | | ???????????# #?????????????????????? | | ??#????????# """ """ """ #?????###?????????????? | | ??# ???????? """ """ """ #????## ##?????????##? | | ??# ??????# """ """ """ #????# ##???????# ## | | ??# ####??# % #?????# ##??#### # | | ??? ??# #?????## #?## #? | | ????? ??########## =#####??????## ### #?? | | ??????# #####?###### %#???????????# ##?? | | ??????# ### # # *######??????# #??? | | ?????### #?????## #??? | | ?????# # # k ## ####### ##??? | | ?????## ## # ##???? | | ?????# ######### ##????? | | ?????# # k ###????## ##?????? | | ????## ##??## ##??????? | | ???## # #### ##???????? | | ???# #### ##????????? | | ???# #####??# ##?????????? | | ???## #??????## ## ###??????????? | | ????# #???????## #######????????????? | | ????## ##????????## #??????????????????? | | ?????###???????????#### ##??????????????????? | | ??????????????????????## ##???????????????????? | | ???????????????????????##@%##????????????????????? | | ????????????????????????#aa#?????????????????????? | | ????????????????????????# #?????????????????????? | | ???????????????????????? #????????????????????? | | ??????????????????????? !==%! ???????????????????? | | ??????????????????????# !%% ??????????????????? | | ?????????????????????? *% #?????????????????? | | ?????????????????????# ##?????????????????? | | ?????????????????????# % ###??????????????????? | | ?????????????????????## % ##????????????????????? | | ??????????????????????### #?????????????????????? | | ????????????????????????# #?????????????????????? | | ????????????????????????# #?????????????????????? | | ?????????????????????????!!#?????????????????????? | | ?????????????????????????a|??????????????????????? | | ?????????????????????????%*??????????????????????? | | ????????????????????????? ??????????????????????? | | ?????????????????????????????????????????????????? | | ?????????????????????????????????????????????????? | | ?????????????????????????????????????????????????? | | ?????????????????????????????????????????????????? | | ?????????????????????????????????????????????????? | | ?????????????????????????????????????????????????? | | | | | +----------------------------------------------------+ Best States ------------- Heat Dissipation 25 Energy Generation 10 Energy Capacity 250 Matter Stores 300 Matter Capacity 300 Sight Range 16 Terrain Scan Density 10 Evasion (%) 55 Targeting Accuracy 5 Defensive Hacking 11 Item Schematics ----------------- None Robot Schematics ------------------ None Fabricated ------------ Nothing Alien Tech Used ----------------- None Achievements -------------- A New Friend Challenges ------------ None Game ------ Seed LightningSurgePrototype Manual? 0 Play Time 00:23:18 Cumulative 16.1 hours Start 2024.05.13 @ 23:18:54 End 2024.05.13 @ 23:39:48 Sessions 1 Manual Loads 0 Difficulty Rogue Special Mode None Game No. 21 Rogue 21 Adventurer 0 Explorer 0 Win Type - Total 0 Types 0/0/0/0/0/0/0/0/0 Lore% 18 Gallery% 26 Achievement% 19 Wizard Run 0 Options --------- Layout 1 ASCII 0 Keyboard 0 Movement Mouse Keybinds 0 Fullscreen 1 Font 32/SmallcapsGlow Map View 50x35 Zoom Use 0% Tactical HUD 1 Map Filters NONE Filters NONE Steam 1 RUN: f54c52be-3d20-4ddb-b4e9-cac5f12652d5